bitfinex/quotes_ETHUSD_20250630
["timestamp","ask_amount","ask_price","bid_price","bid_amount"]
[1751298365941,0.2209705,2471.4,2471.3,25.70923861]
[1751298366294,0.19738573,2471.4,2471.3,26.58753861]
[1751298366730,0.31659629,2471.7,2471.6,14.04596212]
[1751298367056,0.01,2472.2,2471.8,0.8783]
[1751298367201,0.01,2472.2,2472.1,4.0451438]
[1751298367397,0.01,2472.2,2472.1,2.77811182]
[1751298367698,0.01,2472.2,2472.1,0.2016]
[1751298367894,2.9288,2472.5,2472.1,14.2467438]
[1751298368129,2.9288,2473.1,2472.7,4.04403246]
[1751298368322,2.9288,2473.1,2472.4,10.2016]
[1751298368495,1.1048,2473.1,2472.7,4.24575466]
[1751298368700,1.1048,2473.6,2472.8,0.8783]
[1751298368907,4.04315018,2473.4,2472.8,1.0799]
[1751298369195,5.14759552,2473.6,2473.0,4.04353696]
[1751298369396,0.2209705,2473.9,2473.3,4.04318117]
[1751298369596,0.2209705,2473.9,2473.3,6.797]
[1751298369917,0.2209705,2473.9,2473.5,0.2016]
[1751298370105,0.2209705,2473.9,2473.7,0.2016]
[1751298370311,0.2209705,2473.9,2473.7,4.24404326]
[1751298370495,5.14716397,2473.8,2473.7,0.2016]
[1751298370698,0.2209705,2473.9,2473.1,6.821]
[1751298370898,0.2209705,2473.9,2473.5,0.2016]
[1751298371122,0.2209705,2473.9,2473.4,16.83]
[1751298371296,0.2209705,2473.9,2473.8,0.2016]
[1751298371509,0.2209705,2473.9,2473.1,0.88660829]
[1751298371708,0.2209705,2473.9,2473.8,4.04236397]
[1751298372039,4.04166026,2474.3,2473.9,10.0]
[1751298372210,4.04166026,2474.3,2473.5,8.30365219]
[1751298372211,1.1048,2474.4,2474.0,0.2016]
[1751298372537,1.1048,2474.4,2473.6,4.24425468]
[1751298372740,5.14631898,2474.4,2473.7,4.04244797]
[1751298372944,5.14623416,2474.4,2474.0,0.2016]
[1751298373128,5.14623416,2474.4,2473.3,0.8783]
[1751298373129,4.04245681,2473.8,2473.3,0.8783]
[1751298373325,4.04249555,2473.8,2473.4,0.2016]
[1751298373505,4.04236449,2473.8,2473.4,0.2016]
[1751298373703,1.823,2474.0,2473.0,0.8783]
[1751298373933,1.1048,2473.5,2472.7,0.20010242]
[1751298374144,5.86607069,2473.4,2473.0,0.2016]
[1751298374317,4.0427168,2473.6,2472.6,0.8783]
[1751298374318,4.04280581,2473.6,2472.7,8.30365219]
[1751298374640,1.823,2473.7,2473.3,0.2016]
[1751298374641,4.04293618,2473.5,2473.3,0.2016]
[1751298374844,1.1048,2474.0,2473.3,0.2016]
[1751298375007,2.9278,2474.0,2473.2,4.04334465]
[1751298375343,6.96985694,2474.0,2473.7,0.2016]
[1751298375528,4.0299676,2474.0,2473.7,0.2016]
[1751298375729,0.01,2474.2,2473.2,10.0]
[1751298375730,4.0422488,2473.9,2473.8,0.2016]
[1751298375948,4.0422488,2473.9,2472.9,4.04380241]
[1751298375949,1.823,2473.9,2472.8,0.6119]
[1751298376110,1.0185,2473.8,2472.8,0.6119]
[1751298376303,1.0185,2473.8,2473.1,0.2016]
[1751298376510,4.04334465,2473.2,2473.1,0.2016]
[1751298376720,5.85560265,2473.2,2473.1,0.2016]
[1751298376919,4.04370473,2473.0,2472.5,0.6119]
[1751298377118,4.04375048,2473.0,2472.5,0.6119]
[1751298377320,4.04358751,2473.1,2472.5,0.6119]
[1751298377507,5.85570595,2473.2,2472.5,4.65633864]
[1751298377713,4.04353238,2473.1,2472.6,0.46563386]
[1751298377951,4.04373846,2473.0,2472.6,0.46563386]
[1751298378160,4.04373846,2473.0,2472.5,10.81001774]
[1751298378513,4.04357505,2473.1,2472.5,10.81001774]
[1751298378706,4.04375221,2473.0,2472.5,10.81001774]
[1751298378929,1.0036,2473.2,2472.5,10.81001774]
[1751298379142,4.04375817,2473.0,2472.5,10.81001774]
[1751298379510,4.04375817,2473.0,2472.5,14.85450632]
[1751298379710,4.04384604,2472.9,2472.5,10.81001774]
[1751298379910,4.04376201,2473.0,2472.5,10.81001774]
[1751298380139,4.04356917,2473.1,2472.5,10.81001774]
[1751298380443,4.04376437,2473.0,2472.5,12.69995604]
[1751298380646,1.28626,2473.2,2472.7,4.04405078]
[1751298380948,4.04358297,2473.1,2472.6,4.04427666]
[1751298381152,4.04371719,2473.0,2472.5,4.65630893]
[1751298381345,1.28626,2473.2,2472.5,0.6119]
[1751298381559,4.04371605,2473.0,2472.4,4.24266087]
[1751298381863,0.71525044,2473.1,2472.3,10.0]
[1751298382032,1.28626,2473.2,2472.4,4.97189032]
[1751298382226,6.863,2473.5,2472.8,4.04383933]
[1751298382227,5.86611223,2473.4,2472.8,4.04383933]
[1751298382461,5.86610221,2473.4,2472.7,4.04410013]
[1751298382662,4.04326724,2473.3,2472.7,4.0440632]
[1751298382946,4.04326724,2473.3,2472.4,7.05509762]
[1751298382947,4.04343012,2473.2,2472.4,7.05509762]
[1751298383133,4.04343012,2473.2,2472.7,4.0440768]
[1751298383333,4.04326724,2473.3,2472.4,7.05509762]
[1751298383334,4.0433314,2473.3,2472.4,7.05509762]
[1751298383558,5.86610989,2473.4,2472.9,4.04381528]
[1751298383854,4.04252143,2473.8,2472.5,6.82556983]
[1751298383855,1.0424,2473.8,2472.6,9.46555219]
[1751298384055,4.04233963,2473.9,2472.7,18.57362334]
[1751298384361,4.04254505,2473.7,2473.0,10.0]
[1751298384526,4.4470235,2473.6,2473.0,4.04365832]
[1751298384858,0.40425451,2473.6,2473.3,4.04317935]
[1751298385148,2.8654,2474.1,2473.7,4.04244599]
[1751298385445,2.8654,2474.1,2474.0,4.04203718]
[1751298385446,1.823,2474.1,2474.0,4.04203718]
[1751298385750,0.01,2474.2,2474.1,4.04187381]
[1751298386354,0.01,2474.2,2474.0,4.04196936]
[1751298386646,0.01,2474.2,2473.8,4.35346628]
[1751298386854,0.01,2474.2,2474.0,4.2435463]
[1751298387149,0.01,2474.2,2474.1,4.04187381]
[1751298387516,0.01,2474.2,2474.1,4.24347381]
[1751298388151,0.01,2474.2,2474.1,5.17217831]
[1751298388328,0.01,2474.2,2474.1,5.17149527]
[1751298388649,0.01,2474.2,2474.1,6.0928478]
[1751298389160,0.01,2474.2,2474.1,17.2547478]
[1751298389449,0.01,2474.8,2474.1,18.42153075]
[1751298389650,0.01,2474.8,2474.7,14.65279384]
[1751298389841,0.01,2474.8,2474.7,0.92802146]
[1751298390043,0.01,2474.8,2474.7,4.24249384]
[1751298390352,0.01,2474.8,2474.7,5.66674322]
[1751298390665,0.31291495,2475.6,2474.9,0.6119]
[1751298390830,0.31291495,2475.6,2475.0,0.92763843]
[1751298391029,0.31291495,2475.6,2475.5,0.2016]
[1751298391644,0.31291495,2475.6,2475.0,11.16040652]
[1751298391853,0.31291495,2475.6,2475.4,0.2016]
[1751298392054,0.31291495,2475.6,2475.5,4.03958796]
[1751298392221,0.2209705,2476.4,2475.5,15.78095966]
[1751298392554,0.0895705,2476.4,2476.3,0.6119]
[1751298392754,0.0895705,2476.4,2476.3,4.65018292]
[1751298392959,4.03582832,2477.9,2476.4,0.55]
[1751298392960,1.0061,2477.9,2476.4,0.55]
[1751298393132,3.25526127,2478.7,2477.2,1.1619]
[1751298393323,4.03543673,2478.1,2477.3,4.03651002]
[1751298393526,1.0085,2478.7,2478.0,4.035476]
[1751298393761,1.0085,2478.7,2477.5,7.034]
[1751298393944,1.0085,2478.7,2477.8,0.55]
[1751298394147,1.0085,2478.7,2477.9,0.6119]
[1751298394349,0.2209705,2478.8,2478.1,10.0]
[1751298394542,0.2209705,2478.8,2478.2,0.55]
[1751298395060,0.2209705,2478.8,2478.5,4.03458033]
[1751298395224,0.02,2479.4,2478.6,4.03453562]
[1751298395425,0.30923359,2479.8,2478.9,10.55]
[1751298395860,0.30923359,2479.8,2479.7,4.03274589]
[1751298396058,0.30923359,2479.8,2479.6,12.33644842]
[1751298396269,4.03122647,2480.7,2479.9,4.03230146]
[1751298396558,2.091,2481.0,2479.9,10.92268258]
[1751298396858,4.03113008,2480.7,2479.9,10.0]
[1751298397158,6.06097094,2480.8,2480.0,10.0]
[1751298397361,0.061,2481.0,2480.2,0.55]
[1751298397565,0.061,2481.0,2480.5,4.03133483]
[1751298397737,4.0916537,2481.0,2479.9,0.30028439]
[1751298397937,0.061,2481.0,2480.0,8.30365219]
[1751298398138,0.061,2481.0,2480.3,0.55]
[1751298398339,0.061,2481.0,2480.7,10.0]
[1751298398566,0.061,2481.0,2480.7,14.03101065]
[1751298398738,0.061,2481.0,2480.8,10.0]
[1751298399062,0.2209705,2481.3,2481.2,10.0]
[1751298399357,0.2209705,2481.3,2481.2,14.58030791]
[1751298399558,0.2209705,2481.3,2481.2,10.29943724]
[1751298399864,0.2209705,2481.3,2480.6,0.6119]
[1751298400066,2.029,2481.2,2480.1,4.64398199]
[1751298400229,2.25399705,2481.1,2480.3,1.210612]
[1751298400558,4.03159131,2480.5,2480.3,1.210612]
[1751298400760,6.2845076,2481.1,2480.3,1.210612]
[1751298400922,4.03141176,2480.6,2480.3,1.210612]
[1751298401124,4.0316078,2480.4,2480.3,1.210612]
[1751298401368,5.04071331,2480.4,2480.3,1.210612]
[1751298401861,4.03184604,2480.3,2479.1,0.6119]
[1751298402061,4.03177035,2480.3,2479.1,0.6119]
[1751298402262,4.03177035,2480.3,2478.9,0.29811841]
[1751298402465,4.03430829,2478.8,2478.1,4.64720477]
[1751298402665,0.55,2480.3,2478.1,4.64720477]
[1751298402666,1.0239,2479.2,2478.5,4.03455899]
[1751298402976,4.03387946,2479.1,2478.7,0.2016]
[1751298403129,2.028,2479.1,2479.0,0.2016]
[1751298403330,1.0239,2479.8,2479.0,0.2016]
[1751298403667,2.028,2479.7,2479.0,0.2016]
[1751298403961,1.0239,2479.8,2479.3,0.2016]
[1751298404165,4.03296256,2479.6,2479.3,0.2016]
[1751298404368,2.028,2479.5,2479.3,0.2016]
[1751298405366,1.0239,2479.8,2479.3,0.2016]
[1751298405367,5.05658002,2479.8,2479.3,0.2016]
[1751298405582,2.028,2479.6,2479.3,0.2016]
[1751298405732,1.0239,2479.8,2479.3,0.2016]
[1751298406054,2.028,2480.0,2479.7,0.2016]
[1751298406252,4.99096108,2480.3,2479.7,0.2016]
[1751298406253,2.028,2480.2,2479.7,0.2016]
[1751298406570,2.028,2480.2,2479.9,0.2016]
[1751298406863,6.0599329,2480.2,2479.5,4.03295857]
[1751298407062,6.06003459,2480.2,2479.9,0.2016]
[1751298407251,1.10509058,2480.2,2479.9,0.2016]
[1751298407452,0.9591,2480.3,2478.9,1.211223]
[1751298407453,2.028,2480.1,2478.9,1.211223]
[1751298407664,4.03246665,2479.9,2479.4,0.2016]
[1751298407840,2.028,2479.8,2479.6,0.2016]
[1751298408042,0.9591,2480.3,2479.3,4.0333482]
[1751298408245,0.9711,2480.8,2479.7,0.2016]
[1751298408452,4.03178927,2480.3,2480.1,0.2016]
[1751298408787,2.028,2480.6,2480.1,0.2016]
[1751298408932,2.028,2480.5,2479.9,4.03239053]
[1751298409137,0.9711,2480.8,2480.4,0.2008]
[1751298409352,2.028,2480.8,2480.5,4.03133615]
[1751298409548,15.34046973,2481.3,2480.6,4.23205306]
[1751298409549,11.3102705,2481.3,2480.6,4.23205306]
[1751298409839,11.3102705,2481.3,2480.6,0.2008]
[1751298410174,4.03056091,2481.1,2480.6,0.2008]
[1751298410359,4.03039738,2481.2,2480.6,4.23205826]
[1751298410569,15.34047596,2481.3,2480.2,0.4777]
[1751298410747,15.34047596,2481.3,2481.2,4.03030791]
[1751298410748,0.2209705,2481.3,2481.2,4.03030791]
[1751298411534,0.2209705,2481.3,2481.1,0.2008]
[1751298411977,0.2209705,2481.3,2481.2,4.03030791]
[1751298412436,0.2209705,2481.3,2481.1,4.23119325]
[1751298412637,0.2209705,2481.3,2481.1,0.2008]
[1751298413055,1.0104,2481.2,2480.2,0.4777]
[1751298413283,1.0104,2481.2,2479.8,1.210754]
[1751298413284,2.11,2481.1,2479.8,1.688454]
[1751298413434,4.03148217,2480.5,2479.8,0.4777]
[1751298413643,4.03133819,2480.6,2480.3,0.2008]
[1751298413871,2.11,2480.6,2480.3,0.2008]
[1751298414070,4.03087998,2480.9,2480.5,0.2008]
[1751298414246,1.0204,2481.2,2480.5,0.2008]
[1751298414570,1.0204,2481.2,2479.4,0.55]
[1751298414571,1.0204,2481.2,2480.2,0.2008]
[1751298414572,2.11,2481.1,2480.2,0.2008]
[1751298414769,4.03111704,2480.8,2480.4,0.2008]
[1751298414938,2.44513705,2481.1,2480.4,0.2008]
[1751298414939,4.03088358,2480.9,2480.4,0.2008]
[1751298415138,4.03088358,2480.9,2479.8,10.0]
[1751298415139,6.14055638,2481.1,2480.5,4.03129805]
[1751298415333,6.14055638,2481.1,2479.8,10.0]
[1751298415334,2.11,2481.0,2480.1,4.33775414]
[1751298415570,2.11,2481.0,2479.7,4.03263308]
[1751298415571,2.11,2481.0,2480.8,0.2008]
[1751298415777,1.0204,2481.2,2480.8,0.2008]
[1751298415935,2.11,2481.1,2480.8,0.2008]
[1751298416141,1.0204,2481.2,2480.1,4.03206172]
[1751298416142,2.11,2481.0,2480.1,0.30936441]
[1751298416342,1.0204,2481.2,2480.9,4.0306949]
[1751298416555,0.01,2481.2,2480.8,4.03086209]
[1751298416778,0.01,2481.2,2480.4,4.0316078]
[1751298416958,0.01,2481.2,2480.5,0.80632297]
[1751298417173,0.01,2481.2,2480.1,0.29575334]
[1751298417468,0.9637,2481.1,2479.7,0.4777]
[1751298417682,4.03177596,2480.3,2479.8,4.03242509]
[1751298417835,4.03177596,2480.3,2479.3,1.688845]
[1751298417836,4.03195797,2480.2,2479.7,4.03267346]
[1751298418045,0.9611,2480.2,2479.4,4.03313781]
[1751298418272,4.03241603,2480.0,2479.5,0.57219828]
[1751298418473,0.9611,2480.2,2479.5,1.48540774]
[1751298418773,0.9611,2480.2,2479.3,1.688845]
[1751298418774,0.9611,2480.2,2479.3,1.211145]
[1751298418976,4.03250253,2479.9,2479.3,1.211145]
[1751298419175,0.9611,2480.2,2479.3,1.211145]
[1751298419342,4.03237321,2480.0,2479.5,4.03304711]
[1751298419539,2.11,2479.9,2479.7,4.03272432]
[1751298419874,2.11,2480.0,2479.7,4.03272432]
[1751298420049,0.9611,2480.2,2479.3,4.34113923]
[1751298420249,0.9611,2480.2,2479.9,4.03232756]
[1751298420575,2.11,2480.9,2480.0,4.0321974]
[1751298420775,0.01,2481.2,2481.1,4.03047035]
[1751298420976,1.0436,2482.1,2481.9,4.02905994]
[1751298421142,4.33169968,2483.8,2481.9,10.0]
[1751298421143,1.0436,2482.7,2481.9,10.0]
[1751298421471,5.17097235,2483.5,2482.0,5.43188227]
[1751298421643,2.11,2483.2,2482.8,4.02756081]
[1751298421840,2.11,2483.2,2482.1,4.02884654]
[1751298422055,2.11,2483.2,2482.0,1.40293335]
[1751298422056,4.02732062,2483.1,2482.5,4.02810032]
[1751298422392,4.02702587,2483.3,2482.0,10.0]
[1751298422393,2.109,2483.0,2482.0,10.0]
[1751298422676,1.14437433,2483.5,2482.8,4.02771064]
[1751298422884,1.14437433,2483.5,2482.4,4.02835965]
[1751298422885,5.97832804,2483.5,2482.9,4.02751903]
[1751298423052,1.95167793,2483.5,2482.5,4.02816952]
[1751298423386,1.95167793,2483.5,2482.1,5.43169583]
[1751298423387,0.90807793,2483.5,2483.4,14.50443753]
[1751298423681,0.25269901,2483.5,2483.4,14.02673753]
[1751298423851,0.25269901,2483.5,2483.4,15.83210116]
[1751298424053,0.30555224,2483.8,2483.7,4.02625115]
[1751298424377,3.2348357,2485.7,2485.3,4.02355357]
[1751298424582,0.2343353,2485.8,2484.8,10.0]
[1751298424742,0.2343353,2485.8,2484.8,13.35846216]
[1751298425042,4.02363683,2485.4,2484.8,3.35846216]
[1751298425248,4.02362876,2485.4,2484.7,0.4777]
[1751298425471,4.02362876,2485.4,2484.6,1.208742]
[1751298425675,0.2343353,2485.8,2484.6,1.208742]
[1751298425676,2.108,2485.6,2484.6,1.208742]
[1751298425880,4.02463074,2484.7,2484.6,1.208742]
[1751298426062,5.03240941,2485.1,2484.6,1.208742]
[1751298426063,2.197,2484.9,2484.8,0.2008]
[1751298426268,3.2924,2485.2,2484.6,1.409542]
[1751298426575,11.67628657,2485.8,2484.6,1.208742]
[1751298426576,1.0084,2485.1,2484.6,1.208742]
[1751298426790,0.2343353,2485.8,2484.6,1.208742]
[1751298426791,0.2343353,2485.8,2484.6,1.409542]
[1751298427011,0.2343353,2485.8,2485.1,10.0]
[1751298427293,0.2343353,2485.8,2485.7,4.02301162]
[1751298427448,0.2343353,2485.8,2485.7,0.2008]
[1751298427651,0.2343353,2485.8,2485.7,14.22381162]
[1751298427886,0.30187088,2487.9,2485.7,14.22381162]
[1751298427887,0.30187088,2487.9,2486.3,0.5]
[1751298428167,4.01677314,2489.6,2487.8,14.01961572]
[1751298428363,1.0084,2490.0,2488.3,14.21960802]
[1751298428575,1.0084,2490.0,2488.3,16.04346712]
[1751298428761,1.0084,2490.0,2488.3,12.11973007]
[1751298428961,5.02447572,2490.0,2488.4,0.2433]
[1751298429164,1.0084,2490.0,2488.4,10.2433]
[1751298429350,1.0084,2490.0,2488.5,1.20661]
[1751298429577,1.0084,2490.0,2488.6,3.599991]
[1751298430078,1.0084,2490.0,2488.4,0.2433]
[1751298430274,1.0084,2490.0,2488.6,1.206678]
[1751298430452,3.4634,2490.0,2488.6,1.206678]
[1751298430653,2.453,2489.9,2488.6,1.206678]
[1751298430873,1.0084,2490.0,2489.6,4.01660489]
[1751298431090,1.0084,2490.0,2488.6,1.206678]
[1751298431391,0.9812,2490.4,2489.9,4.01607932]
[1751298431578,0.051,2490.8,2490.2,4.01572125]
[1751298431799,0.051,2490.8,2489.4,4.01703221]
[1751298431954,2.595,2490.8,2489.3,9.68128264]
[1751298432159,0.051,2490.8,2489.4,4.01703221]
[1751298432354,0.051,2490.8,2489.2,4.01734953]
[1751298432554,2.544,2490.7,2489.2,4.01725034]
[1751298432887,2.544,2490.7,2488.6,5.22493061]
[1751298432888,0.9437,2490.6,2488.6,1.206678]
[1751298433190,0.9437,2490.6,2488.8,9.68128264]
[1751298433392,0.9437,2490.6,2489.4,4.01688216]
[1751298433593,7.50282753,2490.6,2489.7,4.01654097]
[1751298433766,7.50282753,2490.6,2489.1,10.0]
[1751298433767,3.29328275,2490.5,2489.1,10.0]
[1751298434094,2.543,2490.4,2488.9,14.0178111]
[1751298434305,0.9437,2490.6,2488.8,9.68128264]
[1751298434493,3.4867,2490.6,2489.9,4.01622468]
[1751298434666,3.4867,2490.6,2488.8,10.0]
[1751298434667,0.9437,2490.6,2488.8,10.0]
[1751298434866,0.9437,2490.6,2488.8,2.543]
[1751298435081,0.9437,2490.6,2489.9,4.01621167]
[1751298435396,0.9437,2490.6,2490.1,4.01578851]
[1751298435596,0.9437,2490.6,2489.4,4.01703221]
[1751298435899,2.543,2490.7,2488.3,0.29915221]
[1751298435900,1.0003,2490.5,2488.3,0.29915221]
[1751298436060,4.01601041,2490.1,2488.0,1.206265]
[1751298436262,13.00760104,2490.0,2488.1,0.52256067]
[1751298436458,4.01638685,2489.8,2488.1,0.52256067]
[1751298436681,4.01638685,2489.8,2488.0,1.5036355]
[1751298436682,0.9905,2489.9,2487.8,0.2658]
[1751298436882,0.9905,2489.9,2488.4,4.01864651]
[1751298437085,0.9905,2489.9,2488.3,4.01880802]
[1751298437268,0.9905,2489.9,2488.1,4.01913106]
[1751298437569,2.542,2489.8,2488.2,0.43155973]
[1751298437771,2.542,2489.7,2488.1,4.01907932]
[1751298437959,0.9905,2489.4,2487.4,4.02026212]
[1751298438168,0.9905,2489.4,2487.9,9.68128264]
[1751298438373,5.00756514,2489.4,2487.7,4.0197773]
[1751298438589,2.629,2489.3,2488.2,4.01894866]
[1751298438796,2.629,2489.3,2487.8,4.01951869]
[1751298438797,1.0101,2488.6,2487.8,4.01951869]
[1751298438962,2.629,2488.5,2487.6,4.01985047]
[1751298439161,1.0101,2487.9,2487.4,0.2008]
[1751298439355,1.0101,2487.9,2486.6,1.85884042]
[1751298439356,2.629,2487.8,2486.9,0.2008]
[1751298439612,2.629,2487.8,2487.0,0.88876499]
[1751298439778,0.36391,2487.7,2486.9,4.22185917]
[1751298439983,0.36391,2487.7,2487.0,0.88890138]
[1751298440288,0.9656,2487.4,2486.5,1.16040652]
[1751298440461,4.02171727,2486.5,2486.3,1.16040652]
[1751298440657,4.02171727,2486.5,2486.2,1.16040652]
[1751298440658,2.629,2486.4,2486.2,1.16040652]
[1751298440863,0.9656,2486.6,2486.3,0.88880248]
[1751298440864,3.5946,2486.6,2486.3,0.88880248]
[1751298441167,0.9656,2486.6,2486.5,1.36120652]
[1751298441366,0.9656,2486.6,2486.5,5.18212379]
[1751298441571,0.9656,2486.6,2486.5,6.66781642]
[1751298441871,7.69319528,2487.2,2486.6,4.02155553]
[1751298442087,4.02075321,2487.1,2486.7,1.99827587]
[1751298442296,4.0210704,2486.9,2486.8,0.88880248]
[1751298442602,4.42317744,2486.9,2486.8,0.88749283]
[1751298442763,1.0436,2487.2,2486.8,0.88749214]
[1751298442964,4.02102432,2487.0,2486.4,0.2008]
[1751298443287,4.02111998,2486.9,2486.4,0.2008]
[1751298443487,4.02124042,2486.8,2486.4,0.2008]
[1751298443791,2.629,2486.9,2486.2,4.22286538]
[1751298443992,3.29399324,2486.9,2486.2,0.2008]
[1751298444193,6.65007438,2486.9,2486.3,4.02191777]
[1751298444396,1.0436,2487.2,2486.2,0.2008]
[1751298444900,6.64974705,2487.1,2486.2,0.2008]
[1751298445220,6.6497933,2487.1,2486.2,0.2008]
[1751298445385,4.02090872,2487.0,2486.2,0.2008]
[1751298445707,4.02157506,2486.6,2486.2,0.2008]
[1751298445865,2.63,2486.7,2486.2,0.2008]
[1751298446064,4.02166769,2486.6,2486.2,0.2008]
[1751298446806,6.65124153,2486.8,2486.2,4.22292633]
[1751298447038,6.65131687,2486.8,2486.2,0.2008]
[1751298447240,4.0212321,2486.8,2486.2,4.22297341]
[1751298447404,2.63,2486.9,2486.3,0.89264633]
[1751298447604,4.02151514,2486.7,2486.1,4.02234423]
[1751298447802,4.02173874,2486.5,2486.1,0.2008]
[1751298448155,4.02156208,2486.6,2486.1,0.2008]
[1751298448354,4.02146657,2486.7,2486.2,0.8944399]
[1751298448532,4.02156416,2486.6,2486.3,0.8944399]
[1751298448728,1.0655,2486.9,2486.0,1.10947339]
[1751298448928,2.63,2486.7,2486.2,4.22289564]
[1751298449119,4.02164925,2486.6,2486.1,4.02234142]
[1751298449323,4.0221255,2486.3,2485.8,5.13224125]
[1751298449523,2.63,2486.7,2485.9,1.09806461]
[1751298449524,4.02189091,2486.4,2485.9,1.09806461]
[1751298449733,4.02229678,2486.2,2486.0,0.89728807]
[1751298449955,4.02229678,2486.2,2485.7,1.10947339]
[1751298449956,0.80444148,2486.2,2485.7,1.10947339]
[1751298450255,4.02252614,2486.0,2484.7,4.02455563]
[1751298450421,4.02284978,2485.8,2484.8,0.91265507]
[1751298450621,4.02405659,2485.1,2484.9,0.91265507]
[1751298450817,1.0271,2486.0,2484.7,0.2008]
[1751298450818,2.63,2485.2,2485.0,0.91265507]
[1751298451053,4.02297156,2485.8,2485.1,0.91265507]
[1751298451354,1.0271,2486.0,2485.4,0.2008]
[1751298451557,1.0271,2486.0,2484.8,4.02444434]
[1751298451558,1.0271,2486.0,2485.6,4.02305515]
[1751298451726,1.0271,2486.0,2485.7,0.35337307]
[1751298452059,7.985,2486.4,2485.2,4.02379503]
[1751298452060,2.63,2486.6,2486.1,4.02222949]
[1751298452263,2.63,2486.6,2486.1,4.02232973]
[1751298452444,2.63,2486.6,2485.9,0.2008]
[1751298452445,4.02180048,2486.5,2485.9,0.2008]
[1751298452636,4.09354864,2486.6,2486.0,0.35470104]
[1751298452836,1.46354864,2486.6,2485.6,0.2008]
[1751298453061,4.02112764,2486.9,2486.2,4.02210374]
[1751298453259,14.62979776,2486.5,2486.3,0.35572649]
[1751298453437,4.02223916,2486.2,2485.7,4.0229221]
[1751298453633,4.02187902,2486.4,2485.8,0.56920152]
[1751298453847,10.608,2486.5,2485.9,0.35575095]
[1751298454142,4.02220072,2486.3,2486.0,0.35575095]
[1751298454329,1.0608,2486.5,2486.0,0.35575095]
[1751298454655,4.02237628,2486.1,2485.6,4.02308592]
[1751298454863,4.02210879,2486.3,2485.7,1.32823826]
[1751298454864,5.04129305,2486.2,2485.7,1.32823826]
[1751298455043,4.02250547,2486.1,2485.6,4.0231677]
[1751298455246,4.02250547,2486.1,2485.5,0.02]
[1751298455247,1.019,2486.2,2485.7,0.91361682]
[1751298455436,14.08375914,2487.1,2485.8,1.11441682]
[1751298455437,1.0024,2486.8,2485.8,1.11441682]
[1751298455623,4.0215234,2486.7,2486.1,4.22308014]
[1751298455829,3.6324,2486.8,2486.1,0.2008]
[1751298456029,3.6324,2486.8,2486.3,4.02204078]
[1751298456226,3.6324,2486.8,2486.1,0.2008]
[1751298456459,1.0024,2486.8,2486.4,4.02172123]
[1751298456624,1.0024,2486.8,2485.9,1.10947339]
[1751298456625,4.02220255,2486.2,2486.1,1.10947339]
[1751298456825,15.62465168,2486.2,2485.5,0.02]
[1751298457124,4.02268439,2486.0,2485.5,0.02]
[1751298457346,4.0212996,2486.8,2485.5,0.02]
[1751298457347,0.9644,2486.9,2485.5,0.02]
[1751298457554,4.02248087,2486.1,2485.5,0.52722484]
[1751298457762,12.0352321,2486.8,2485.5,1.57649667]
[1751298458058,4.02173832,2486.5,2485.5,4.04330655]
[1751298458262,4.02173832,2486.5,2485.9,4.02254966]
[1751298458436,6.6524027,2486.7,2485.5,0.02]
[1751298458641,4.02317347,2485.6,2485.5,0.02]
[1751298459243,4.98028905,2485.7,2485.5,0.02]
[1751298459442,4.98029886,2485.7,2485.5,0.02]
[1751298459764,4.02317347,2485.6,2485.5,0.02]
[1751298460233,4.98028087,2485.7,2485.5,0.02]
[1751298460560,4.02287284,2485.8,2485.5,0.02]
[1751298460751,5.07008472,2486.0,2485.5,0.02]
[1751298460953,4.02301812,2485.7,2485.5,0.02]
[1751298461135,4.02317347,2485.6,2485.5,0.02]
[1751298461330,4.02307638,2485.7,2485.5,0.02]
[1751298461537,4.02317347,2485.6,2485.5,0.02]
[1751298461968,12.01117347,2485.6,2485.5,0.02]
[1751298462268,12.96787347,2485.6,2485.5,0.02]
[1751298462566,12.96787347,2485.6,2484.1,3.35411605]
[1751298462567,4.98027696,2485.4,2484.1,4.02550065]
[1751298462744,4.02382102,2485.2,2483.9,4.02592696]
[1751298462943,4.02529148,2484.3,2483.8,2.07397306]
[1751298463134,2.631,2484.6,2483.8,2.07397306]
[1751298463338,1.0444,2484.1,2483.2,2.50679667]
[1751298463533,1.0444,2484.1,2483.0,1.55649667]
[1751298463733,3.6754,2484.1,2483.0,1.55649667]
[1751298463932,1.0444,2484.1,2483.0,0.49894127]
[1751298464166,4.02604786,2483.9,2483.0,0.49894127]
[1751298464467,3.6754,2484.1,2482.8,1.0468]
[1751298464653,4.02703479,2483.3,2482.6,1.55649667]
[1751298464966,3.6754,2484.1,2482.4,1.0534]
[1751298464967,2.631,2483.4,2482.4,1.55649667]
[1751298465169,2.631,2483.6,2482.6,1.55649667]
[1751298465386,2.631,2483.6,2482.6,4.02803512]
[1751298465593,7.975,2483.8,2482.5,1.55649667]
[1751298465890,13.7261,2483.9,2482.6,4.02798407]
[1751298465891,4.02690574,2483.3,2482.6,4.02798407]
[1751298466052,12.01036343,2483.7,2482.5,2.631]
[1751298466365,4.0265317,2483.6,2482.5,2.631]
[1751298466570,7.98,2483.7,2482.8,0.02]
[1751298466754,4.02649378,2483.6,2483.0,4.02735795]
[1751298467138,4.02675781,2483.4,2482.8,4.24845174]
[1751298467656,8.88091,2483.7,2482.8,0.02]
[1751298467859,8.88091,2483.7,2482.8,4.04760746]
[1751298468158,4.02641327,2483.6,2482.8,0.02]
[1751298468360,4.02659515,2483.5,2483.0,4.02727215]
[1751298468564,5.05510827,2483.9,2482.8,0.02]
[1751298468865,4.02612161,2483.8,2483.3,4.02682221]
[1751298469169,4.02609246,2483.8,2483.3,4.02682221]
[1751298469376,4.02630043,2483.7,2483.0,4.22812456]
[1751298469591,1.0291,2483.9,2483.2,4.02703851]
[1751298469893,4.02641327,2483.6,2482.8,0.02]
[1751298470039,4.02708269,2483.2,2482.8,0.02]
[1751298470243,4.02738801,2483.0,2482.8,0.02]
[1751298470642,4.02754843,2482.9,2482.8,0.02]
[1751298470866,5.83454207,2482.9,2482.8,0.02]